[Event "47th GRE-chT 2019"]
[Site "Patra"]
[Date "2019.07.03"]
[Round "3.39"]
[White "Stefanou, Dimitrios"]
[Black "Kouvidis, Ioannis"]
[Result "1/2-1/2"]
[ECO "A49"]
[WhiteElo "1975"]
[BlackElo "2053"]
[Annotator "NA"]
[PlyCount "76"]
[EventDate "2019.07.02"]
[EventCountry "GRE"]
[SourceTitle "playchess.com"]
[Source "ChessBase"]
[SourceQuality "1"]
[TimeControl "5400+30"]

1. d4 {[%emt 0:00:00]} Nf6 {[%emt 0:00:00]} 2. Nf3 {[%emt 0:00:00]} g6 {[%emt 0:00:41]} 3. g3 {[%emt 0:00:00]} Bg7 {[%emt 0:00:45]} 4. Bg2 {[%emt 0:00:00]} O-O {[%emt 0:00:07]} 5. O-O {[%emt 0:00:00]} d6 {[%emt 0:00:03]} 6. a4 {[%emt 0:00:04]} a5 {[%emt 0:05:46]} 7. Nc3 {[%emt 0:00:11]} d5 {[%emt 0:01:07]} 8. Bf4 {[%emt 0:04:58]} c6 {[%emt 0:04:09]} 9. Re1 {[%emt 0:03:49]} Bf5 {[%emt 0:03:52]} 10. Ne5 {[%emt 0:07:59]} Nbd7 {[%emt 0:10:04]} 11. e4 {[%emt 0:33:45]} Nxe4 {[%emt 0:18:15]} 12. Nxe4 {[%emt 0:00:49]} Bxe4 {[%emt 0:00:30]} 13. Bxe4 {[%emt 0:00:38]} dxe4 {[%emt 0:00:08]} 14. Rxe4 {[%emt 0:00:22]} Nf6 {[%emt 0:03:03]} 15. Re1 {[%emt 0:05:00]} Nd5 {[%emt 0:02:48]} 16. Bd2 {[%emt 0:02:55]} Qc8 {[%emt 0:12:45]} 17. Qf3 {[%emt 0:02:11]} Nf6 {[%emt 0:07:21]} 18. Rad1 {[%emt 0:06:02]} Rd8 {[%emt 0:05:08]} 19. Nc4 {[%emt 0:02:54]} Qh3 {[%emt 0:01:01]} 20. c3 {[%emt 0:06:50]} e6 {[%emt 0:04:27]} 21. Ne5 {[%emt 0:01:53]} Qf5 {[%emt 0:02:44]} 22. Kg2 {[%emt 0:02:52]} Rd5 {[%emt 0:02:18]} 23. Be3 {[%emt 0:02:33]} Qxf3+ {[%emt 0:00:46]} 24. Kxf3 {[%emt 0:00:24]} Nd7 {[%emt 0:00:47]} 25. Nxd7 {[%emt 0:01:33]} Rxd7 {[%emt 0:00:03]} 26. Rd2 {[%emt 0:02:51]} Bf6 {[%emt 0:01:36]} 27. Red1 {[%emt 0:01:30]} Rad8 {[%emt 0:00:14]} 28. c4 {[%emt 0:05:24]} Be7 {[%emt 0:02:13]} 29. Ke2 {[%emt 0:00:17]} Bb4 {[%emt 0:00:34]} 30. Rd3 {[%emt 0:00:12]} f6 {[%emt 0:01:10]} 31. f3 {[%emt 0:01:31]} Kf7 {[%emt 0:00:08]} 32. g4 {[%emt 0:01:18]} Rd6 {[%emt 0:04:09]} 33. g5 {[%emt 0:02:26]} f5 {[%emt 0:01:38]} 34. Bf4 {[%emt 0:00:42]} R6d7 {[%emt 0:00:19]} 35. Be5 {[%emt 0:00:28]} Be7 {[%emt 0:00:29]} 36. f4 {[%emt 0:00:18]} Bb4 {[%emt 0:03:05]} 37. Ke3 {[%emt 0:01:47]} Be7 {[%emt 0:01:05]} 38. Ke2 {[%emt 0:00:13]} Bb4 {[%emt 0:00:10]} 1/2-1/2

[Event "47th GRE-chT 2019"]
[Site "Patra"]
[Date "2019.07.03"]
[Round "3.40"]
[White "Kazakos, Nikolaos"]
[Black "Dristellas, Neoklis"]
[Result "0-1"]
[ECO "C47"]
[WhiteElo "1450"]
[BlackElo "1577"]
[Annotator "NA"]
[PlyCount "60"]
[EventDate "2019.07.02"]
[EventCountry "GRE"]
[SourceTitle "playchess.com"]
[Source "ChessBase"]
[SourceQuality "1"]
[TimeControl "5400+30"]

1. e4 {[%emt 0:00:00]} e5 {[%emt 0:00:00]} 2. Nf3 {[%emt 0:00:00]} Nc6 {[%emt 0:00:00]} 3. Nc3 {[%emt 0:00:07]} Nf6 {[%emt 0:00:04]} 4. d4 {[%emt 0:00:06]} exd4 {[%emt 0:04:43]} 5. Nxd4 {[%emt 0:00:05]} Be7 {[%emt 0:11:59]} 6. Nxc6 {[%emt 0:13:56]} dxc6 {[%emt 0:02:47]} 7. Qxd8+ {[%emt 0:00:48]} Bxd8 {[%emt 0:00:30]} 8. f3 {[%emt 0:00:14]} O-O {[%emt 0:00:37]} 9. Be3 {[%emt 0:00:57]} Be6 {[%emt 0:01:17]} 10. O-O-O {[%emt 0:01:22]} Be7 {[%emt 0:00:21]} 11. Be2 {[%emt 0:03:06]} a5 {[%emt 0:13:15]} 12. Bf4 {[%emt 0:19:13]} Rfc8 {[%emt 0:01:36]} 13. g4 {[%emt 0:00:42]} b5 {[%emt 0:05:00]} 14. Kb1 {[%emt 0:06:51]} Nd7 {[%emt 0:11:57]} 15. h4 {[%emt 0:04:22]} Nc5 {[%emt 0:03:24]} 16. Bf1 {[%emt 0:01:18]} Bf6 {[%emt 0:09:55]} 17. Ne2 {[%emt 0:09:18]} Na4 {[%emt 0:02:09]} 18. e5 {[%emt 0:02:23]} Be7 {[%emt 0:00:45]} 19. Nd4 {[%emt 0:00:27]} Rd8 {[%emt 0:02:50]} 20. Be2 {[%emt 0:00:49]} Bd5 {[%emt 0:01:08]} 21. Nf5 {[%emt 0:01:02]} Bc5 {[%emt 0:01:55]} 22. Rhf1 {[%emt 0:10:54]} Rab8 {[%emt 0:06:01]} 23. Bd3 {[%emt 0:01:18]} b4 {[%emt 0:00:52]} 24. Ng3 {[%emt 0:02:23]} Rb7 {[%emt 0:07:03]} 25. Ne2 {[%emt 0:02:21]} Rdb8 {[%emt 0:00:37]} 26. Be4 {[%emt 0:05:29]} Bxe4 {[%emt 0:01:40]} 27. fxe4 {[%emt 0:00:02]} Nc3+ {[%emt 0:00:45]} 28. bxc3 {[%emt 0:02:19]} bxc3+ {[%emt 0:00:14]} 29. Ka1 {[%emt 0:00:04]} Ba3 {[%emt 0:00:40]} 30. Bc1 {[%emt 0:00:06]} Rb1# {[%emt 0:00:18]} 0-1

[Event "47th GRE-chT 2019"]
[Site "Patra"]
[Date "2019.07.04"]
[Round "4.2"]
[White "Postny, Evgeny"]
[Black "Pavlidis, Antonios"]
[Result "1/2-1/2"]
[ECO "E15"]
[WhiteElo "2601"]
[BlackElo "2549"]
[Annotator "ChessBase"]
[PlyCount "72"]
[EventDate "2019.07.02"]
[EventCountry "GRE"]
[SourceTitle "playchess.com"]
[Source "ChessBase"]
[SourceQuality "1"]
[TimeControl "5400+30"]

1. d4 {[%emt 0:00:00]} Nf6 {[%emt 0:00:00]} 2. c4 {[%emt 0:00:00]} e6 {[%emt 0:00:00]} 3. Nf3 {[%emt 0:00:00]} b6 {[%emt 0:00:00]} 4. g3 {[%emt 0:00:00]} Ba6 {[%emt 0:00:00]} 5. b3 {[%emt 0:00:06]} Bb4+ {[%emt 0:00:00]} 6. Bd2 {[%emt 0:01:03]} Be7 {[%emt 0:00:00]} 7. Bg2 {[%emt 0:01:29]} O-O {[%emt 0:01:00]} 8. O-O {[%emt 0:00:10]} d5 {[%emt 0:02:41]} 9. Qc2 {[%emt 0:01:15]} Bb7 {[%emt 0:01:51]} 10. cxd5 {[%emt 0:00:19]} exd5 {[%emt 0:00:13]} 11. Nc3 {[%emt 0:01:01]} Na6 {[%emt 0:01:54]} 12. Rad1 {[%emt 0:06:25]} Re8 {[%emt 0:05:17]} 13. Ne5 {[%emt 0:12:21]} c5 {[%emt 0:05:17]} 14. dxc5 {[%emt 0:00:14]} Bxc5 {[%emt 0:01:28]} 15. Nd3 {[%emt 0:17:01]} Bd6 {[%emt 0:21:53]} 16. Bg5 {[%emt 0:16:52]} Rc8 {[%emt 0:04:17]} 17. Qb2 {[%emt 0:09:44]} Nc7 {[%emt 0:09:42]} 18. e3 {[%emt 0:03:27]} h6 {[%emt 0:00:29]} 19. Bf4 {[%emt 0:01:05]} Ba6 {[%emt 0:06:49]} 20. Ne2 {[%emt 0:00:14]} Ne6 {[%emt 0:00:58]} 21. Bxd6 {[%emt 0:00:02]} Qxd6 {[%emt 0:00:44]} 22. Rfe1 {[%emt 0:08:41]} Rc7 {[%emt 0:08:20]} 23. Ndf4 {[%emt 0:00:48]} Bxe2 {[%emt 0:00:07]} 24. Nxe2 {[%emt 0:02:51]} Rec8 {[%emt 0:01:01]} 25. Rd2 {[%emt 0:02:39]} Qb4 {[%emt 0:03:37]} 26. a3 {[%emt 0:00:04]} Qe7 {[%emt 0:02:18]} 27. b4 {[%emt 0:02:14]} a5 {[%emt 0:05:41]} 28. bxa5 {[%emt 0:00:02]} bxa5 {[%emt 0:01:03]} 29. h4 {[%emt 0:04:33]} a4 {[%emt 0:06:49]} 30. Rb1 {[%emt 0:04:11]} Ne4 {[%emt 0:06:20]} 31. Bxe4 {[%emt 0:00:01]} dxe4 {[%emt 0:02:02]} 32. Qb4 {[%emt 0:01:00]} Qxb4 {[%emt 0:00:06]} 33. Rxb4 {[%emt 0:00:04]} Rc4 {[%emt 0:01:04]} 34. Rdb2 {[%emt 0:00:47]} h5 {[%emt 0:01:30]} 35. Kf1 {[%emt 0:00:47]} Kf8 {[%emt 0:02:19]} 36. Kg2 {[%emt 0:01:14]} g6 {[%emt 0:00:46]} 1/2-1/2

[Event "47th GRE-chT 2019"]
[Site "Patra"]
[Date "2019.07.04"]
[Round "4.2"]
[White "Nikolaidis, Ioannis"]
[Black "Roinos, Ilias"]
[Result "1-0"]
[ECO "D32"]
[WhiteElo "2534"]
[BlackElo "2210"]
[Annotator "ChessBase"]
[PlyCount "61"]
[EventDate "2019.07.02"]
[EventCountry "GRE"]
[SourceTitle "playchess.com"]
[Source "ChessBase"]
[SourceQuality "1"]
[TimeControl "5400+30"]

1. d4 {[%emt 0:00:00]} d5 {[%emt 0:00:00]} 2. Nf3 {[%emt 0:00:19]} e6 {[%emt 0:00:03]} 3. c4 {[%emt 0:00:20]} c5 {[%emt 0:00:07]} 4. cxd5 {[%emt 0:00:41]} exd5 {[%emt 0:00:08]} 5. Nc3 {[%emt 0:00:52]} Nc6 {[%emt 0:00:20]} 6. dxc5 {[%emt 0:02:22]} d4 {[%emt 0:00:27]} 7. Na4 {[%emt 0:00:19]} Bxc5 {[%emt 0:00:15]} 8. Nxc5 {[%emt 0:02:03]} Qa5+ {[%emt 0:00:10]} 9. Bd2 {[%emt 0:00:35]} Qxc5 {[%emt 0:00:07]} 10. Rc1 {[%emt 0:00:06]} Qb6 {[%emt 0:00:16]} 11. e3 {[%emt 0:00:54]} Nf6 {[%emt 0:04:37]} 12. exd4 {[%emt 0:05:25]} O-O {[%emt 0:05:13]} 13. Be2 {[%emt 0:05:16]} Re8 {[%emt 0:12:55]} 14. O-O {[%emt 0:05:56]} Bg4 {[%emt 0:03:10]} 15. Bc3 {[%emt 0:06:04]} Rad8 {[%emt 0:01:28]} 16. Re1 {[%emt 0:08:41]} h6 {[%emt 0:26:26]} 17. h3 {[%emt 0:07:04]} Bxf3 {[%emt 0:05:55]} 18. Bxf3 {[%emt 0:00:13]} Nxd4 {[%emt 0:00:10]} 19. Rxe8+ {[%emt 0:01:42]} Nxe8 {[%emt 0:00:09]} 20. Bxd4 {[%emt 0:05:46]} Rxd4 {[%emt 0:00:20]} 21. Qe2 {[%emt 0:01:38]} Nf6 {[%emt 0:04:08]} 22. Rc8+ {[%emt 0:08:47]} Kh7 {[%emt 0:00:21]} 23. Qc2+ {[%emt 0:01:02]} g6 {[%emt 0:00:11]} 24. Qc7 {[%emt 0:00:52]} Qe6 {[%emt 0:13:41]} 25. Ra8 {[%emt 0:11:56]} g5 {[%emt 0:12:04]} 26. Rxa7 {[%emt 0:04:07]} Rc4 {[%emt 0:03:11]} 27. Qxb7 {[%emt 0:01:49]} Rc1+ {[%emt 0:01:43]} 28. Kh2 {[%emt 0:00:09]} Kg7 {[%emt 0:03:20]} 29. Qe7 {[%emt 0:01:59]} Qxe7 {[%emt 0:00:08]} 30. Rxe7 {[%emt 0:00:05]} Rc2 {[%emt 0:00:08]} 31. Re2 {[%emt 0:01:13]} 1-0

[Event "47th GRE-chT 2019"]
[Site "Patra"]
[Date "2019.07.04"]
[Round "4.3"]
[White "Sandalakis, Angelos"]
[Black "Grivas, Efstratios"]
[Result "1/2-1/2"]
[ECO "C81"]
[WhiteElo "2429"]
[BlackElo "2418"]
[Annotator "NA"]
[PlyCount "46"]
[EventDate "2019.07.02"]
[EventCountry "GRE"]
[SourceTitle "playchess.com"]
[Source "ChessBase"]
[SourceQuality "1"]
[TimeControl "5400+30"]

1. e4 {[%emt 0:00:00]} e5 {[%emt 0:00:00]} 2. Nf3 {[%emt 0:00:00]} Nc6 {[%emt 0:00:05]} 3. Bb5 {[%emt 0:00:00]} a6 {[%emt 0:00:14]} 4. Ba4 {[%emt 0:00:00]} Nf6 {[%emt 0:00:11]} 5. O-O {[%emt 0:00:00]} Nxe4 {[%emt 0:00:20]} 6. d4 {[%emt 0:00:09]} b5 {[%emt 0:00:08]} 7. Bb3 {[%emt 0:00:06]} d5 {[%emt 0:00:12]} 8. dxe5 {[%emt 0:00:07]} Be6 {[%emt 0:00:11]} 9. Qe2 {[%emt 0:00:10]} Bc5 {[%emt 0:02:01]} 10. Nbd2 {[%emt 0:00:57]} Nxd2 {[%emt 0:02:05]} 11. Bxd2 {[%emt 0:00:06]} O-O {[%emt 0:04:05]} 12. Bg5 {[%emt 0:04:45]} Qd7 {[%emt 0:15:31]} 13. Qd2 {[%emt 0:15:28]} d4 {[%emt 0:19:42]} 14. Qf4 {[%emt 0:19:27]} Rfe8 {[%emt 0:08:50]} 15. Rad1 {[%emt 0:03:34]} Bxb3 {[%emt 0:06:52]} 16. axb3 {[%emt 0:00:57]} Re6 {[%emt 0:02:20]} 17. b4 {[%emt 0:05:42]} Be7 {[%emt 0:02:29]} 18. c3 {[%emt 0:13:58]} Bxg5 {[%emt 0:04:38]} 19. Qxg5 {[%emt 0:00:06]} Rg6 {[%emt 0:01:42]} 20. Qh5 {[%emt 0:07:46]} Rh6 {[%emt 0:00:51]} 21. Qg5 {[%emt 0:00:11]} Rg6 {[%emt 0:00:08]} 22. Qh5 {[%emt 0:01:47]} Rh6 {[%emt 0:01:16]} 23. Qg5 {[%emt 0:00:44]} Rg6 {[%emt 0:00:54]} 1/2-1/2

[Event "47th GRE-chT 2019"]
[Site "Patra"]
[Date "2019.07.04"]
[Round "4.3"]
[White "Gikas, Andreas Basilius"]
[Black "Koutoukidis, Panagiotis"]
[Result "0-1"]
[ECO "B47"]
[WhiteElo "2178"]
[BlackElo "2344"]
[Annotator "NA"]
[PlyCount "104"]
[EventDate "2019.07.02"]
[EventCountry "GRE"]
[SourceTitle "playchess.com"]
[Source "ChessBase"]
[SourceQuality "1"]
[TimeControl "5400+30"]

1. e4 {[%emt 0:00:00]} c5 {[%emt 0:00:00]} 2. Nf3 {[%emt 0:00:00]} e6 {[%emt 0:00:00]} 3. d4 {[%emt 0:00:03]} cxd4 {[%emt 0:00:00]} 4. Nxd4 {[%emt 0:00:12]} Nc6 {[%emt 0:00:00]} 5. Nc3 {[%emt 0:00:18]} Qc7 {[%emt 0:00:03]} 6. Be2 {[%emt 0:00:16]} Nf6 {[%emt 0:00:06]} 7. O-O {[%emt 0:02:02]} Be7 {[%emt 0:00:06]} 8. Be3 {[%emt 0:02:03]} O-O {[%emt 0:00:36]} 9. f4 {[%emt 0:01:09]} d6 {[%emt 0:00:12]} 10. Qe1 {[%emt 0:02:37]} Nxd4 {[%emt 0:00:14]} 11. Bxd4 {[%emt 0:00:16]} e5 {[%emt 0:00:06]} 12. Be3 {[%emt 0:01:01]} b6 {[%emt 0:00:40]} 13. f5 {[%emt 0:06:20]} Bb7 {[%emt 0:01:57]} 14. Bf3 {[%emt 0:01:50]} Rfe8 {[%emt 0:07:57]} 15. Qg3 {[%emt 0:18:32]} Kh8 {[%emt 0:01:35]} 16. Rfe1 {[%emt 0:06:41]} Rac8 {[%emt 0:02:36]} 17. Kh1 {[%emt 0:02:46]} Qc4 {[%emt 0:04:55]} 18. Bg5 {[%emt 0:04:03]} h6 {[%emt 0:07:27]} 19. Bxf6 {[%emt 0:02:00]} Bxf6 {[%emt 0:00:37]} 20. a3 {[%emt 0:16:59]} d5 {[%emt 0:07:51]} 21. Be2 {[%emt 0:05:43]} Qc5 {[%emt 0:03:28]} 22. Bb5 {[%emt 0:07:41]} Re7 {[%emt 0:22:57]} 23. exd5 {[%emt 0:00:29]} Bxd5 {[%emt 0:00:33]} 24. Nxd5 {[%emt 0:01:55]} Qxd5 {[%emt 0:00:23]} 25. Qd3 {[%emt 0:05:15]} Qxd3 {[%emt 0:00:38]} 26. Bxd3 {[%emt 0:01:31]} e4 {[%emt 0:00:21]} 27. Rxe4 {[%emt 0:01:44]} Rxe4 {[%emt 0:00:14]} 28. Bxe4 {[%emt 0:00:06]} Bxb2 {[%emt 0:00:23]} 29. Ra2 {[%emt 0:01:58]} Bc3 {[%emt 0:09:55]} 30. g3 {[%emt 0:01:41]} b5 {[%emt 0:00:31]} 31. Bd3 {[%emt 0:01:20]} Rc5 {[%emt 0:00:21]} 32. a4 {[%emt 0:02:53]} b4 {[%emt 0:00:08]} 33. a5 {[%emt 0:00:16]} Kg8 {[%emt 0:00:25]} 34. Kg2 {[%emt 0:01:12]} Kf8 {[%emt 0:01:16]} 35. Kf3 {[%emt 0:00:38]} Ke7 {[%emt 0:00:28]} 36. Ra4 {[%emt 0:00:32]} Kd6 {[%emt 0:00:25]} 37. a6 {[%emt 0:00:42]} Ke5 {[%emt 0:02:47]} 38. g4 {[%emt 0:00:54]} Kd4 {[%emt 0:00:20]} 39. Kf2 {[%emt 0:01:44]} Re5 {[%emt 0:01:03]} 40. Be2 {[%emt 0:00:00]} Ke4 {[%emt 0:00:00]} 41. h3 {[%emt 0:00:00]} Kf4 {[%emt 0:00:00]} 42. Bd3 {[%emt 0:00:00]} f6 {[%emt 0:00:00]} 43. Be2 {[%emt 0:00:00]} h5 {[%emt 0:00:00]} 44. Bf3 {[%emt 0:00:00]} h4 {[%emt 0:00:00]} 45. Be2 {[%emt 0:00:00]} Re3 {[%emt 0:00:00]} 46. Ra5 {[%emt 0:00:00]} Rxh3 {[%emt 0:00:00]} 47. Rd5 {[%emt 0:00:00]} Rh2+ {[%emt 0:00:00]} 48. Kf1 {[%emt 0:00:00]} h3 {[%emt 0:00:00]} 49. Bd1 {[%emt 0:00:00]} Rh1+ {[%emt 0:00:00]} 50. Kf2 {[%emt 0:00:00]} Be1+ {[%emt 0:00:00]} 51. Ke2 {[%emt 0:00:00]} h2 {[%emt 0:00:00]} 52. Rd4+ {[%emt 0:00:00]} Ke5 0-1

[Event "47th GRE-chT 2019"]
[Site "Patra"]
[Date "2019.07.04"]
[Round "4.4"]
[White "Souleidis, Georgios"]
[Black "Kanakaris, Georgios"]
[Result "1-0"]
[ECO "B51"]
[WhiteElo "2426"]
[BlackElo "2409"]
[Annotator "NA"]
[PlyCount "123"]
[EventDate "2019.07.02"]
[EventCountry "GRE"]
[SourceTitle "playchess.com"]
[Source "ChessBase"]
[SourceQuality "1"]
[TimeControl "5400+30"]

1. e4 {[%emt 0:00:00]} c5 {[%emt 0:02:16]} 2. Nf3 {[%emt 0:00:00]} d6 {[%emt 0:00:06]} 3. Bb5+ {[%emt 0:00:19]} Nd7 {[%emt 0:00:14]} 4. O-O {[%emt 0:01:38]} g6 {[%emt 0:00:21]} 5. c3 {[%emt 0:02:12]} Ngf6 {[%emt 0:00:34]} 6. Re1 {[%emt 0:02:36]} a6 {[%emt 0:00:31]} 7. Bf1 {[%emt 0:02:27]} Ne5 {[%emt 0:02:39]} 8. d4 {[%emt 0:15:10]} Nxf3+ {[%emt 0:00:10]} 9. Qxf3 {[%emt 0:02:04]} cxd4 {[%emt 0:00:05]} 10. cxd4 {[%emt 0:01:03]} Bg7 {[%emt 0:04:01]} 11. e5 {[%emt 0:07:57]} Ng4 {[%emt 0:08:36]} 12. Bf4 {[%emt 0:02:39]} O-O {[%emt 0:02:11]} 13. Nc3 {[%emt 0:03:46]} Nh6 {[%emt 0:00:19]} 14. h3 {[%emt 0:09:34]} Nf5 {[%emt 0:01:24]} 15. Rad1 {[%emt 0:13:02]} h6 {[%emt 0:16:51]} 16. g4 {[%emt 0:00:05]} Nh4 {[%emt 0:00:03]} 17. Qg3 {[%emt 0:00:29]} g5 {[%emt 0:06:48]} 18. Bc1 {[%emt 0:03:35]} f5 {[%emt 0:00:17]} 19. exf6 {[%emt 0:01:04]} Rxf6 {[%emt 0:03:13]} 20. f4 {[%emt 0:12:39]} d5 {[%emt 0:24:04]} 21. Bg2 {[%emt 0:00:25]} Nxg2 {[%emt 0:00:01]} 22. Qxg2 {[%emt 0:00:11]} Be6 {[%emt 0:01:17]} 23. fxg5 {[%emt 0:00:05]} hxg5 {[%emt 0:00:24]} 24. Bxg5 {[%emt 0:00:10]} Rg6 {[%emt 0:03:39]} 25. Bf4 {[%emt 0:00:58]} Qd7 {[%emt 0:02:23]} 26. Be5 {[%emt 0:05:14]} Kh7 {[%emt 0:01:55]} 27. Rd3 {[%emt 0:04:11]} Rg8 {[%emt 0:01:27]} 28. Rg3 {[%emt 0:00:48]} Bh6 {[%emt 0:03:08]} 29. Rf1 {[%emt 0:00:49]} Bg5 {[%emt 0:02:24]} 30. Qc2 {[%emt 0:00:11]} Bh4 {[%emt 0:01:35]} 31. Rg2 {[%emt 0:00:58]} Qc8 {[%emt 0:00:38]} 32. Qd3 {[%emt 0:06:42]} Qc4 {[%emt 0:00:40]} 33. Qxc4 {[%emt 0:00:03]} dxc4 {[%emt 0:00:04]} 34. d5 {[%emt 0:00:21]} Bd7 {[%emt 0:00:26]} 35. Rf7+ {[%emt 0:00:53]} Kh6 {[%emt 0:02:25]} 36. Bf4+ {[%emt 0:00:07]} Bg5 {[%emt 0:00:10]} 37. Bxg5+ {[%emt 0:00:18]} Rxg5 {[%emt 0:00:10]} 38. Rxe7 {[%emt 0:00:38]} R8g7 {[%emt 0:00:32]} 39. Rxg7 {[%emt 0:00:16]} Kxg7 {[%emt 0:00:00]} 40. Rd2 {[%emt 0:00:00]} b5 {[%emt 0:00:00]} 41. a3 {[%emt 0:00:00]} a5 {[%emt 0:00:00]} 42. Kf2 {[%emt 0:00:00]} Re5 {[%emt 0:00:00]} 43. Kf3 {[%emt 0:00:00]} b4 {[%emt 0:00:00]} 44. axb4 {[%emt 0:00:00]} axb4 {[%emt 0:00:00]} 45. Na2 {[%emt 0:00:00]} c3 {[%emt 0:00:00]} 46. bxc3 {[%emt 0:00:00]} b3 {[%emt 0:00:00]} 47. Nb4 {[%emt 0:00:00]} Re1 {[%emt 0:00:00]} 48. Rb2 {[%emt 0:00:00]} Ba4 {[%emt 0:00:00]} 49. Nd3 {[%emt 0:00:00]} Rd1 {[%emt 0:00:00]} 50. Nc5 {[%emt 0:00:00]} Be8 {[%emt 0:00:00]} 51. c4 {[%emt 0:00:00]} Rc1 {[%emt 0:00:00]} 52. Rxb3 {[%emt 0:00:00]} Rxc4 {[%emt 0:00:00]} 53. Rb7+ {[%emt 0:00:00]} Kg6 {[%emt 0:00:00]} 54. Rb6+ {[%emt 0:00:00]} Kg7 {[%emt 0:00:00]} 55. Ne6+ {[%emt 0:00:00]} Kf7 {[%emt 0:00:00]} 56. h4 {[%emt 0:00:00]} Ba4 {[%emt 0:05:37]} 57. Ng5+ {[%emt 0:00:00]} Kf8 {[%emt 0:00:13]} 58. Rf6+ {[%emt 0:00:00]} Kg8 {[%emt 0:01:33]} 59. Rf4 {[%emt 0:00:00]} Bd1+ {[%emt 0:00:10]} 60. Ke3 {[%emt 0:00:00]} Rc5 {[%emt 0:02:07]} 61. Rd4 {[%emt 0:00:33]} Bxg4 62. Ne4 {[%emt 0:00:30]} 1-0

[Event "47th GRE-chT 2019"]
[Site "Patra"]
[Date "2019.07.04"]
[Round "4.4"]
[White "Nikolaou, Georgios"]
[Black "Zervos, Lazaros"]
[Result "1-0"]
[ECO "A05"]
[WhiteElo "2202"]
[BlackElo "2055"]
[Annotator "NA"]
[PlyCount "111"]
[EventDate "2019.07.02"]
[EventCountry "GRE"]
[SourceTitle "playchess.com"]
[Source "ChessBase"]
[SourceQuality "1"]
[TimeControl "5400+30"]

1. Nf3 {[%emt 0:00:00]} Nf6 {[%emt 0:04:42]} 2. c4 {[%emt 0:00:00]} g6 {[%emt 0:00:38]} 3. g3 {[%emt 0:00:00]} Bg7 {[%emt 0:01:23]} 4. Bg2 {[%emt 0:00:14]} d5 {[%emt 0:04:37]} 5. d4 {[%emt 0:01:32]} dxc4 {[%emt 0:01:50]} 6. Qa4+ {[%emt 0:00:28]} Nfd7 {[%emt 0:01:11]} 7. O-O {[%emt 0:01:54]} O-O {[%emt 0:00:42]} 8. Qxc4 {[%emt 0:00:56]} Nb6 {[%emt 0:00:51]} 9. Qd3 {[%emt 0:07:50]} Nc6 {[%emt 0:01:21]} 10. Rd1 {[%emt 0:01:13]} Bf5 {[%emt 0:10:13]} 11. e4 {[%emt 0:09:07]} Bg4 {[%emt 0:01:48]} 12. Be3 {[%emt 0:00:35]} Qd7 {[%emt 0:25:40]} 13. Nc3 {[%emt 0:14:17]} e5 {[%emt 0:04:33]} 14. d5 {[%emt 0:06:10]} Nd4 {[%emt 0:13:10]} 15. Bxd4 {[%emt 0:06:53]} exd4 {[%emt 0:00:40]} 16. Ne2 {[%emt 0:04:10]} Bxf3 {[%emt 0:06:33]} 17. Qxf3 {[%emt 0:10:48]} c5 {[%emt 0:00:56]} 18. Rac1 {[%emt 0:01:09]} Qb5 {[%emt 0:03:32]} 19. b3 {[%emt 0:04:53]} Nd7 {[%emt 0:05:25]} 20. Qd3 {[%emt 0:01:54]} Qxd3 {[%emt 0:02:19]} 21. Rxd3 {[%emt 0:00:03]} f5 {[%emt 0:05:55]} 22. exf5 {[%emt 0:18:42]} gxf5 {[%emt 0:00:08]} 23. Rdd1 {[%emt 0:03:05]} Bh6 {[%emt 0:02:38]} 24. Rc2 {[%emt 0:01:27]} Rad8 {[%emt 0:00:26]} 25. Nc1 {[%emt 0:02:52]} Bxc1 {[%emt 0:00:14]} 26. Rdxc1 {[%emt 0:00:39]} b6 {[%emt 0:00:14]} 27. b4 {[%emt 0:00:26]} Rc8 {[%emt 0:01:07]} 28. Bf1 {[%emt 0:00:10]} Ne5 {[%emt 0:00:38]} 29. bxc5 {[%emt 0:00:59]} Rxc5 {[%emt 0:00:33]} 30. Rxc5 {[%emt 0:00:16]} bxc5 {[%emt 0:00:01]} 31. f4 {[%emt 0:01:54]} Nd7 {[%emt 0:00:41]} 32. Bb5 {[%emt 0:00:01]} Nb6 {[%emt 0:00:38]} 33. Rxc5 {[%emt 0:00:16]} Rd8 {[%emt 0:00:37]} 34. Kf2 {[%emt 0:01:13]} Kf8 {[%emt 0:00:22]} 35. Bc6 {[%emt 0:00:23]} Ke7 {[%emt 0:00:39]} 36. Ra5 {[%emt 0:00:22]} Kd6 {[%emt 0:00:31]} 37. Ke2 {[%emt 0:00:35]} h5 {[%emt 0:00:25]} 38. Kd3 {[%emt 0:00:15]} h4 {[%emt 0:00:29]} 39. Kxd4 {[%emt 0:00:27]} hxg3 {[%emt 0:00:29]} 40. hxg3 {[%emt 0:00:00]} Nc8 {[%emt 0:00:00]} 41. Bb7 {[%emt 0:00:00]} Nb6 {[%emt 0:00:00]} 42. Rc5 {[%emt 0:00:00]} Rg8 {[%emt 0:00:00]} 43. Rc6+ {[%emt 0:00:00]} Kd7 {[%emt 0:00:00]} 44. Rc3 {[%emt 0:00:00]} Kd6 {[%emt 0:00:00]} 45. Bc6 {[%emt 0:00:00]} Rh8 {[%emt 0:00:00]} 46. Re3 {[%emt 0:00:00]} Rh6 {[%emt 0:00:00]} 47. a4 {[%emt 0:00:00]} Rg6 {[%emt 0:00:00]} 48. a5 {[%emt 0:00:00]} Nc8 {[%emt 0:00:00]} 49. Re8 {[%emt 0:00:00]} Kc7 {[%emt 0:00:00]} 50. Kc5 {[%emt 0:00:00]} Nd6 {[%emt 0:00:00]} 51. Re7+ {[%emt 0:00:00]} Kb8 {[%emt 0:00:00]} 52. a6 {[%emt 0:00:00]} Ne4+ {[%emt 0:00:35]} 53. Kd4 {[%emt 0:00:00]} Rxg3 {[%emt 0:00:43]} 54. Rb7+ {[%emt 0:00:00]} Kc8 {[%emt 0:00:43]} 55. Bd7+ {[%emt 0:00:00]} Kd8 {[%emt 0:00:10]} 56. Bxf5 {[%emt 0:00:00]} 1-0